fUST/lending_fUST_20240612
["ID","MTS","AMOUNT","RATE_DAILY","PERIOD"]
[329124000,1718124644194,-500.0,0.00021917,2]
[329124002,1718124644204,-500.0,0.00021917,2]
[329124004,1718124644216,-500.0,0.00021917,2]
[329124006,1718124644228,-337.97621532,0.00021917,2]
[329124008,1718124644239,-500.0,0.00021917,2]
[329124010,1718124644249,-500.0,0.00021917,2]
[329124012,1718124644260,-536.1980825,0.00021917,2]
[329124014,1718124644270,-500.0,0.00021917,2]
[329124016,1718124644281,-500.0,0.00021917,2]
[329124018,1718124644292,-525.09159796,0.00021917,2]
[329124020,1718124644302,-500.0,0.00021917,2]
[329124022,1718124644313,-500.0,0.00021917,2]
[329124024,1718124644323,-531.70571183,0.00021917,2]
[329124026,1718124644333,-846.5,0.00021917,2]
[329124028,1718124644343,-520.4652546,0.00021917,2]
[329124030,1718124644354,-500.0,0.00021917,2]
[329124032,1718124644364,-500.0,0.00021917,2]
[329124034,1718124644375,-513.85139915,0.00021917,2]
[329124036,1718124644385,-500.0,0.00021917,2]
[329124038,1718124644395,-500.0,0.00021917,2]
[329124040,1718124644405,-500.0,0.00021917,2]
[329124042,1718124644422,-500.0,0.00021917,2]
[329124044,1718124644432,-500.0,0.00021917,2]
[329124046,1718124644442,-500.0,0.00021917,2]
[329124048,1718124644452,-510.81163439,0.00021917,2]
[329124050,1718124644464,-257.55586363,0.00021917,2]
[329124052,1718124644479,-500.0,0.00021917,2]
[329124054,1718124644489,-506.73654918,0.00021917,2]
[329124056,1718124644501,-500.0,0.00021917,2]
[329124058,1718124644512,-506.523941,0.00021917,2]
[329124060,1718124644522,-500.0,0.00021917,2]
[329124062,1718124644532,-397.45093608,0.00021917,2]
[329124064,1718124644542,-500.0,0.00021917,2]
[329124066,1718124644553,-500.0,0.00021917,4]
[329124068,1718124644563,-500.0,0.00021917,2]
[329124070,1718124644575,-500.0,0.00021917,2]
[329124072,1718124644586,-500.0,0.00021917,2]
[329124074,1718124644596,-500.0,0.00021917,2]
[329124076,1718124644606,-500.0,0.00021917,2]
[329124078,1718124644618,-500.0,0.00021917,2]
[329124080,1718124644630,-500.0,0.00021917,2]
[329124082,1718124644641,-500.0,0.00021917,2]
[329124084,1718124644652,-500.0,0.00021917,2]
[329124086,1718124644663,-500.0,0.00021917,2]
[329124087,1718124644674,-504.60082719,0.00021917,2]
[329124089,1718124644685,-500.0,0.00021917,2]
[329124091,1718124644695,-500.0,0.00021917,2]
[329124093,1718124644707,-526.3240568,0.00021917,2]
[329124095,1718124644717,-258.94767295,0.00021917,2]
[329124096,1718124644737,-500.0,0.00021917,2]
[329124098,1718124644747,-500.0,0.00021917,2]
[329124100,1718124644756,-500.0,0.00021917,2]
[329124102,1718124644767,-500.0,0.00021917,2]
[329124104,1718124644777,-500.0,0.00021917,2]
[329124106,1718124644786,-500.0,0.00021917,2]
[329124108,1718124644797,-504.31852967,0.00021917,2]
[329124110,1718124644808,-505.76753032,0.00021917,2]
[329124112,1718124644819,-516.36086985,0.00021917,2]
[329124114,1718124644829,-500.0,0.00021917,2]
[329124116,1718124644840,-510.89827031,0.00021917,2]
[329124118,1718124644851,-500.0,0.00021917,2]
[329124120,1718124644861,-500.89200816,0.00021917,2]
[329124122,1718124644871,-500.0,0.00021917,2]
[329124124,1718124644882,-500.0,0.00021917,2]
[329124125,1718124644893,-500.0,0.00021917,2]
[329124127,1718124644903,-175.41835006,0.00021917,2]
[329124129,1718124644914,-500.0,0.00021917,2]
[329124131,1718124644925,-500.0,0.00021917,2]
[329124133,1718124644936,-500.0,0.00021917,2]
[329124135,1718124644946,-500.0,0.00021917,2]
[329124137,1718124644956,-500.0,0.00021917,2]
[329124139,1718124644967,-2192.89,0.00021917,2]
[329124141,1718124644985,-500.0,0.00021917,2]
[329124143,1718124644995,-500.0,0.00021917,2]
[329124145,1718124645005,-500.0,0.00021917,2]
[329124147,1718124645014,-500.0,0.00021917,2]
[329124149,1718124645024,-500.0,0.00021917,2]
[329124151,1718124645034,-500.0,0.00021917,2]
[329124153,1718124645044,-434.54907323,0.00021917,2]
[329124155,1718124645053,-500.0,0.00021917,2]
[329124157,1718124645064,-500.25605501,0.00021917,2]
[329124159,1718124645075,-505.4945338,0.00021917,2]
[329124161,1718124645087,-500.0,0.00021917,2]
[329124163,1718124645097,-442.16674703,0.00021917,2]
[329124172,1718124645194,-500.0,0.00021917,2]
[329124174,1718124645207,-500.0,0.00021917,2]
[329124176,1718124645218,-500.0,0.00021917,2]
[329124178,1718124645237,-500.0,0.00021917,2]
[329124180,1718124645248,-500.0,0.00021917,2]
[329124182,1718124645259,-500.0,0.00021917,2]
[329124184,1718124645269,-500.0,0.00021917,2]
[329124186,1718124645280,-500.0,0.00021917,2]
[329124188,1718124645291,-532.64517307,0.00021917,2]
[329124190,1718124645301,-500.0,0.00021917,2]
[329124192,1718124645312,-1685.46,0.00021917,2]
[329124194,1718124645323,-500.0,0.00021917,2]
[329124196,1718124645334,-500.0,0.00021917,2]
[329124198,1718124645345,-506.20660584,0.00021917,2]
[329124200,1718124645356,-565.0,0.00021917,2]
[329124202,1718124645367,-500.0,0.00021917,2]
[329124204,1718124645377,-500.0,0.00021917,2]
[329124206,1718124645388,-518.02586726,0.00021917,2]
[329124208,1718124645398,-501.0501097,0.00021917,2]
[329124210,1718124645409,-500.0,0.00021917,2]
[329124212,1718124645421,-500.0,0.00021917,2]
[329124214,1718124645435,-500.0,0.00021917,2]
[329124215,1718124645446,-500.0,0.00021917,2]
[329124217,1718124645457,-570.11045282,0.00021917,2]
[329124219,1718124645468,-500.0,0.00021917,2]
[329124221,1718124645485,-500.0,0.00021917,2]
[329124223,1718124645496,-500.0,0.00021917,2]
[329124225,1718124645510,-500.0,0.00021917,2]
[329124227,1718124645522,-500.0,0.00021917,2]
[329124229,1718124645532,-1153.58,0.00021917,2]
[329124231,1718124645542,-500.0,0.00021917,2]
[329124233,1718124645553,-509.8123844,0.00021917,2]
[329124235,1718124645563,-500.0,0.00021917,2]
[329124237,1718124645573,-500.0,0.00021917,2]
[329124239,1718124645584,-500.47173354,0.00021917,2]
[329124241,1718124645594,-500.0,0.00021917,2]
[329124243,1718124645605,-500.0,0.00021917,2]
[329124245,1718124645615,-500.0,0.00021917,2]
[329124246,1718124645626,-500.0,0.00021917,2]
[329124247,1718124645636,-500.0,0.00021917,2]
[329124248,1718124645647,-500.0,0.00021917,2]
[329124249,1718124645657,-894.71,0.00021917,2]
[329124250,1718124645667,-508.46259569,0.00021917,2]
[329124251,1718124645677,-500.0,0.00021917,2]
[329124252,1718124645687,-500.0,0.00021917,2]
[329124253,1718124645697,-500.0,0.00021917,2]
[329124254,1718124645707,-500.0,0.00021917,2]
[329124255,1718124645717,-500.0,0.00021917,2]
[329124256,1718124645730,-586.16811941,0.00021917,2]
[329124257,1718124645740,-500.0,0.00021917,2]
[329124258,1718124645750,-500.0,0.00021917,2]
[329124259,1718124645760,-500.0,0.00021917,2]
[329124260,1718124645770,-500.0,0.00021917,2]
[329124261,1718124645780,-500.0,0.00021917,2]
[329124262,1718124645790,-500.0,0.00021917,2]
[329124263,1718124645800,-500.0,0.00021917,2]
[329124264,1718124645810,-500.0,0.00021917,2]
[329124265,1718124645820,-556.26732156,0.00021917,2]
[329124266,1718124645830,-500.0,0.00021917,2]
[329124267,1718124645840,-500.0,0.00021917,2]
[329124269,1718124645850,-500.0,0.00021917,2]
[329124270,1718124645860,-500.0,0.00021917,2]
[329124271,1718124645869,-500.0,0.00021917,2]
[329124272,1718124645879,-500.0,0.00021917,2]
[329124273,1718124645889,-500.0,0.00021917,2]
[329124274,1718124645899,-500.0,0.00021917,2]
[329124275,1718124645908,-500.0,0.00021917,2]
[329124276,1718124645918,-500.0,0.00021917,2]
[329124278,1718124645928,-500.0,0.00021917,2]
[329124279,1718124645938,-500.0,0.00021917,2]
[329124281,1718124645948,-500.0,0.00021917,2]
[329124283,1718124645959,-500.0,0.00021917,2]
[329124285,1718124645969,-500.0,0.00021917,2]
[329124287,1718124645983,-500.0,0.00021917,2]
[329124289,1718124645994,-500.0,0.00021917,2]
[329124291,1718124646004,-500.0,0.00021917,2]
[329124293,1718124646013,-151.0,0.00021917,2]
[329124295,1718124646023,-500.0,0.00021917,2]
[329124297,1718124646033,-500.0,0.00021917,2]
[329124299,1718124646043,-500.0,0.00021917,2]
[329124301,1718124646054,-500.0,0.00021917,2]
[329124303,1718124646064,-12415.49,0.00021917,2]
[329124305,1718124646074,-500.0,0.00021917,2]
[329124307,1718124646085,-403.77260421,0.00021917,2]
[329124309,1718124646095,-500.0,0.00021917,2]
[329124311,1718124646105,-500.0,0.00021917,2]
[329124313,1718124646116,-613.15770546,0.00021917,2]
[329124315,1718124646127,-500.0,0.00021917,2]
[329124317,1718124646137,-500.0,0.00021917,2]
[329124319,1718124646147,-500.0,0.00021917,2]
[329124321,1718124646157,-500.0,0.00021917,2]
[329124323,1718124646174,-500.0,0.00021917,2]
[329124325,1718124646188,-501.86179848,0.00021917,2]
[329124327,1718124646199,-500.0,0.00021917,2]
[329124329,1718124646210,-500.0,0.00021917,2]
[329124331,1718124646220,-500.0,0.00021917,2]
[329124333,1718124646235,-500.0,0.00021917,2]
[329124335,1718124646245,-500.0,0.00021917,2]
[329124337,1718124646256,-500.0,0.00021917,2]
[329124339,1718124646266,-500.0,0.00021917,2]
[329124341,1718124646276,-505.85074964,0.00021917,2]
[329124343,1718124646287,-500.0,0.00021917,2]
[329124345,1718124646297,-550.20908396,0.00021917,2]
[329124347,1718124646307,-500.0,0.00021917,2]
[329124349,1718124646317,-151.0,0.00021917,2]
[329124351,1718124646328,-500.0,0.00021917,2]
[329124353,1718124646338,-500.0,0.00021917,2]
[329124355,1718124646349,-500.0,0.00021917,2]
[329124357,1718124646359,-4342.25,0.00021917,2]
[329124359,1718124646370,-500.0,0.00021917,2]
[329124361,1718124646381,-500.0,0.00021917,2]
[329124362,1718124646391,-500.0,0.00021917,2]
[329124364,1718124646401,-160.76599054,0.00021917,2]
[329124367,1718124646413,-500.0,0.00021917,2]
[329124368,1718124646425,-1700.75,0.00021917,2]
[329124370,1718124646435,-504.85194436,0.00021917,2]
[329124372,1718124646445,-500.0,0.00021917,2]
[329124375,1718124646456,-500.0,0.00021917,2]
[329124377,1718124646468,-500.0,0.00021917,2]
[329124379,1718124646480,-500.0,0.00021917,2]
[329124381,1718124646490,-1642.98,0.00021917,2]
[329124383,1718124646500,-314.13001627,0.00021917,2]
[329124385,1718124646510,-500.0,0.00021917,2]
[329124387,1718124646519,-500.0,0.00021917,2]
[329124390,1718124646529,-517.18,0.00021917,2]
[329124393,1718124646540,-500.0,0.00021917,2]
[329124396,1718124646550,-500.0,0.00021917,2]
[329124398,1718124646561,-500.0,0.00021917,2]
[329124403,1718124646571,-500.59207061,0.00021917,2]
[329124406,1718124646581,-500.0,0.00021917,2]
[329124410,1718124646591,-500.0,0.00021917,2]
[329124414,1718124646601,-509.24252903,0.00021917,2]
[329124416,1718124646611,-1001.90146411,0.00021917,2]
[329124418,1718124646620,-632.83241667,0.00021917,2]
[329124420,1718124646630,-2625.11,0.00021917,2]
[329124422,1718124646640,-504.22057924,0.00021917,2]
[329124424,1718124646651,-500.0,0.00021917,2]
[329124426,1718124646661,-500.0,0.00021917,2]
[329124428,1718124646671,-619.29,0.00021917,2]
[329124430,1718124646681,-500.0,0.00021917,2]
[329124432,1718124646691,-500.0,0.00021917,2]
[329124434,1718124646702,-5700.72,0.00021917,2]
[329124436,1718124646712,-254.62492364,0.00021917,2]
[329124438,1718124646725,-500.0,0.00021917,2]
[329124440,1718124646735,-1263.45,0.00021917,2]
[329124443,1718124646746,-1212.65,0.00021917,2]
[329124444,1718124646757,-500.0,0.00021917,2]
[329124447,1718124646767,-4924.79,0.00021917,2]
[329124449,1718124646777,-4924.79,0.00021917,2]
[329124452,1718124646789,-4924.79,0.00021917,2]
[329124454,1718124646800,-4924.79,0.00021917,2]
[329124456,1718124646810,-164.44830573,0.00021917,2]
[329124458,1718124646820,-4924.79,0.00021917,2]
[329124461,1718124646831,-4924.79,0.00021917,2]
[329124464,1718124646841,-4924.79,0.00021917,2]
[329124466,1718124646851,-4924.79,0.00021917,2]
[329124467,1718124646861,-4924.79,0.00021917,2]
[329124469,1718124646871,-4924.79,0.00021917,2]
[329124472,1718124646882,-500.0,0.00021917,2]
[329124474,1718124646893,-4924.79,0.00021917,2]
[329124476,1718124646903,-4924.79,0.00021917,2]
[329124478,1718124646913,-4924.79,0.00021917,2]
[329124479,1718124646923,-500.0,0.00021917,2]
[329124482,1718124646934,-500.0,0.00021917,2]
[329124483,1718124646944,-4924.79,0.00021917,2]
[329124486,1718124646954,-4924.79,0.00021917,2]
[329124488,1718124646967,-4924.79,0.00021917,2]
[329124489,1718124646979,-4924.79,0.00021917,2]
[329124491,1718124646989,-4924.79,0.00021917,2]
[329124493,1718124646999,-4924.79,0.00021917,2]
[329124494,1718124647009,-500.0,0.00021917,2]
[329124496,1718124647019,-4924.79,0.00021917,2]
[329124498,1718124647029,-4924.79,0.00021917,2]
[329124500,1718124647039,-500.0,0.00021917,2]
[329124502,1718124647050,-4924.79,0.00021917,2]
[329124504,1718124647060,-4924.79,0.00021917,2]
[329124506,1718124647071,-500.0,0.00021917,2]
[329124508,1718124647081,-4924.97039884,0.00021917,2]
[329124510,1718124647091,-505.10966833,0.00021917,2]
[329124512,1718124647102,-500.0,0.00021917,2]
[329124514,1718124647112,-500.0,0.00021917,2]
[329124522,1718124647200,-500.0,0.00021917,2]
[329124524,1718124647211,-500.0,0.00021917,2]
[329124526,1718124647226,-264.16649717,0.00021917,2]
[329124528,1718124647237,-623.14,0.00021917,2]
[329124530,1718124647247,-500.0,0.00021917,2]
[329124532,1718124647257,-500.0,0.00021917,2]
[329124534,1718124647268,-500.0,0.00021917,2]
[329124536,1718124647278,-503.5617165,0.00021917,2]
[329124538,1718124647289,-500.0,0.00021917,2]
[329124540,1718124647299,-500.0,0.00021917,2]
[329124542,1718124647309,-500.0,0.00021917,2]
[329124544,1718124647319,-500.0,0.00021917,2]
[329124546,1718124647330,-500.0,0.00021917,2]
[329124548,1718124647340,-500.0,0.00021917,2]
[329124550,1718124647353,-544.11,0.00021917,2]
[329124552,1718124647363,-500.0,0.00021917,2]
[329124554,1718124647373,-500.0,0.00021917,2]
[329124555,1718124647383,-500.0,0.00021917,2]
[329124557,1718124647394,-500.0,0.00021917,2]
[329124559,1718124647405,-500.0,0.00021917,2]
[329124561,1718124647419,-643.37,0.00021917,2]
[329124563,1718124647430,-500.0,0.00021917,2]
[329124565,1718124647440,-500.0,0.00021917,2]
[329124567,1718124647450,-500.0,0.00021917,2]
[329124569,1718124647463,-500.0,0.00021917,2]
[329124572,1718124647475,-554.94673723,0.00021917,2]
[329124573,1718124647485,-500.0,0.00021917,2]
[329124575,1718124647498,-500.0,0.00021917,2]
[329124577,1718124647509,-500.0,0.00021917,2]
[329124579,1718124647519,-500.0,0.00021917,2]
[329124581,1718124647529,-500.0,0.00021917,2]
[329124583,1718124647540,-529.45223768,0.00021917,2]
[329124585,1718124647550,-500.0,0.00021917,2]
[329124588,1718124647560,-500.0,0.00021917,2]
[329124590,1718124647584,-500.0,0.00021917,2]
[329124592,1718124647596,-500.0,0.00021917,2]
[329124594,1718124647608,-500.0,0.00021917,2]
[329124596,1718124647619,-455.51245139,0.00021917,2]
[329124598,1718124647631,-500.0,0.00021917,2]
[329124600,1718124647641,-546.10393319,0.00021917,2]
[329124602,1718124647653,-500.0,0.00021917,2]
[329124604,1718124647664,-500.0,0.00021917,2]
[329124607,1718124647675,-500.0,0.00021917,2]
[329124609,1718124647736,-500.0,0.00021917,2]
[329124611,1718124647748,-500.0,0.00021917,2]
[329124613,1718124647759,-500.0,0.00021917,2]
[329124615,1718124647771,-500.0,0.00021917,2]
[329124617,1718124647782,-500.0,0.00021917,2]
[329124619,1718124647793,-598.99821302,0.00021917,2]
[329124621,1718124647804,-502.2861983,0.00021917,2]
[329124623,1718124647815,-500.0,0.00021917,2]
[329124625,1718124647825,-501.41958495,0.00021917,2]
[329124627,1718124647836,-500.0,0.00021917,2]
[329124629,1718124647846,-500.0,0.00021917,2]
[329124631,1718124647857,-156.52349621,0.00021917,2]
[329124633,1718124647867,-500.97617179,0.00021917,2]
[329124635,1718124647877,-500.0,0.00021917,2]
[329124638,1718124647888,-503.23959229,0.00021917,2]
[329124640,1718124647898,-3856.17,0.00021917,2]
[329124642,1718124647909,-500.0,0.00021917,2]
[329124644,1718124647919,-500.0,0.00021917,2]
[329124646,1718124647930,-500.0,0.00021917,2]
[329124648,1718124647941,-500.0,0.00021917,2]
[329124650,1718124647952,-500.0,0.00021917,2]
[329124652,1718124647963,-506.51533363,0.00021917,2]
[329124654,1718124647976,-500.0,0.00021917,2]
[329124656,1718124647986,-500.0,0.00021917,2]
[329124658,1718124647996,-500.0,0.00021917,2]
[329124660,1718124648007,-500.0,0.00021917,2]
[329124662,1718124648018,-500.0,0.00021917,2]
[329124664,1718124648028,-500.0,0.00021917,2]
[329124666,1718124648039,-500.0,0.00021917,2]
[329124668,1718124648051,-500.0,0.00021917,2]
[329124671,1718124648061,-500.0,0.00021917,2]
[329124673,1718124648073,-500.0,0.00021917,2]
[329124675,1718124648084,-500.0,0.00021917,2]
[329124677,1718124648095,-371.6601274,0.00021917,2]
[329124679,1718124648106,-263.8325541,0.00021917,2]
[329124680,1718124648117,-500.0,0.00021917,2]
[329124682,1718124648128,-500.0,0.00021917,2]
[329124684,1718124648139,-500.0,0.00021917,2]
[329124686,1718124648150,-500.0,0.00021917,2]
[329124689,1718124648161,-500.0,0.00021917,2]
[329124691,1718124648178,-500.0,0.00021917,2]
[329124693,1718124648189,-500.0,0.00021917,2]
[329124695,1718124648199,-390.5733644,0.00021917,2]
[329124697,1718124648209,-500.0,0.00021917,2]
[329124699,1718124648220,-500.0,0.00021917,2]
[329124701,1718124648233,-500.0,0.00021917,2]
[329124703,1718124648243,-500.0,0.00021917,2]
[329124705,1718124648254,-500.0,0.00021917,2]
[329124707,1718124648264,-500.0,0.00021917,2]
[329124709,1718124648275,-500.0,0.00021917,2]
[329124711,1718124648286,-545.33487208,0.00021917,2]
[329124713,1718124648296,-500.0,0.00021917,2]
[329124715,1718124648306,-200.0,0.00021917,2]
[329124717,1718124648316,-500.0,0.00021917,2]
[329124719,1718124648326,-866.58,0.00021917,2]
[329124721,1718124648336,-625.0,0.00021917,2]
[329124723,1718124648346,-500.0,0.00021917,2]
[329124725,1718124648356,-500.0,0.00021917,2]
[329124727,1718124648367,-500.0,0.00021917,2]
[329124729,1718124648377,-500.0,0.00021917,2]
[329124731,1718124648388,-500.0,0.00021917,2]
[329124733,1718124648399,-166.666666,0.00021918,2]
[329124735,1718124648411,-17019.66720512,0.00021918,2]
[329124780,1718124648977,-471.19093909,0.00021,2]
[329124781,1718124648987,-418.35987901,0.00021793,2]
[329124782,1718124648996,-500.0,0.00021917,2]
[329124783,1718124649005,-500.0,0.00021917,2]
[329124784,1718124649014,-500.0,0.00021917,2]
[329124785,1718124649024,-500.0,0.00021917,2]
[329124786,1718124649034,-7362.34597504,0.00021918,2]
[329124787,1718124649046,-520.28485859,0.00021918,2]
[329124788,1718124649058,-16266.29241874,0.00021918,2]
[329124805,1718124649926,-500.0,0.00020997,2]
[329124807,1718124649937,-500.0,0.00020997,2]
[329124810,1718124649948,-500.0,0.00020997,2]
[329124812,1718124649958,-500.0,0.00020997,2]
[329124813,1718124649968,-106.65424492,0.00020997,2]
[329124816,1718124649984,-393.34575508,0.00020997,2]
[329124818,1718124649995,-500.0,0.00020997,2]
[329124820,1718124650005,-500.0,0.00020997,2]
[329124822,1718124650016,-320.87336041,0.00020997,2]
[329124824,1718124650026,-500.0,0.00021917,2]
[329124826,1718124650036,-581.40954012,0.00021917,2]
[329124828,1718124650047,-500.0,0.00021917,2]
[329124830,1718124650057,-500.0,0.00021917,2]
[329124832,1718124650067,-500.0,0.00021917,2]
[329124834,1718124650077,-500.0,0.00021917,2]
[329124836,1718124650088,-500.0,0.00021917,2]
[329124838,1718124650098,-2555.80727221,0.00021918,2]
[329124840,1718124650109,-5488.48843627,0.00021918,13]
[329124845,1718124650153,-275.294104,0.00021917,2]
[329124847,1718124650168,-3503.20590812,0.00021918,13]
[329124849,1718124650185,-403.11992884,0.00021918,7]
[329124851,1718124650196,-151.0,0.00021918,2]
[329124853,1718124650206,-151.0,0.00021918,2]
[329124855,1718124650217,-151.0,0.00021918,2]
[329124857,1718124650229,-151.0,0.00021918,2]
[329124859,1718124650239,-151.0,0.00021918,2]
[329124861,1718124650250,-151.0,0.00021918,2]
[329124862,1718124650260,-153.824729,0.00021918,2]
[329124865,1718124650271,-152.228194,0.00021918,2]
[329124866,1718124650281,-151.0,0.00021918,2]
[329124868,1718124650292,-162.13629,0.00021918,2]
[329124870,1718124650302,-162.13629,0.00021918,2]
[329124872,1718124650313,-151.0,0.00021918,2]
[329124875,1718124650324,-303.224163,0.00021918,2]
[329124877,1718124650334,-303.224163,0.00021918,2]
[329124879,1718124650345,-1261.3124019,0.00021918,2]
[329124889,1718124650445,-503.09226001,0.00021917,2]
[329124890,1718124650456,-199.6452021,0.00021918,2]
[329124893,1718124650467,-1022.33569555,0.00021918,2]
[329124895,1718124650482,-438.62190845,0.00021918,2]
[329124897,1718124650492,-456.326226,0.00021918,2]
[329124899,1718124650503,-456.326226,0.00021918,2]
[329124908,1718124650593,-151.0,0.00021918,2]
[329124910,1718124650604,-151.0,0.00021918,2]
[329124912,1718124650614,-151.0,0.00021918,2]
[329124914,1718124650624,-151.0,0.00021918,2]
[329124916,1718124650635,-1335.939114,0.00021918,2]
[329124918,1718124650645,-151.0,0.00021918,2]
[329124920,1718124650655,-1335.939114,0.00021918,2]
[329124922,1718124650666,-151.0,0.00021918,2]
[329124924,1718124650676,-216.131151,0.00021918,2]
[329124926,1718124650687,-151.0,0.00021918,2]
[329124928,1718124650697,-690.700038,0.00021918,2]
[329124930,1718124650707,-690.700038,0.00021918,2]
[329124932,1718124650720,-151.0,0.00021918,2]
[329124934,1718124650733,-423.855719,0.00021918,2]
[329124936,1718124650743,-151.0,0.00021918,2]
[329124938,1718124650754,-423.855719,0.00021918,2]
[329124940,1718124650764,-1000.0,0.00021918,2]
[329124941,1718124650775,-411.73135179,0.00021918,2]
[329125878,1718125450919,6182.59678171,0.00023,30]
[329125879,1718125532500,526.5926666,9.999e-05,2]
[329125880,1718125544129,155.02015262,9.999e-05,2]
[329126144,1718125833853,-1355.41274288,0.00018,2]
[329126146,1718125833864,-155.03255684,0.00018658,2]
[329126148,1718125833875,-14536.3369191,0.0001866,2]
[329126150,1718125833886,-3607.60813674,0.00019128,2]
[329126152,1718125833897,-175.2059,0.0001923,2]
[329126154,1718125833908,-260.169626,0.00019831,2]
[329126156,1718125833921,-201.0440722,0.00019899,2]
[329126158,1718125833931,-325.86542201,0.00019977,2]
[329126160,1718125833942,-193.39,0.00019989,3]
[329126171,1718125834053,-155.02015262,0.00019997,2]
[329126174,1718125834067,-543.27424164,0.00019997,2]
[329126175,1718125834078,-500.0,0.00019997,2]
[329126177,1718125834089,-500.0,0.00019997,2]
[329126179,1718125834099,-500.0,0.00019997,2]
[329126181,1718125834110,-3274.75,0.00019997,2]
[329126182,1718125834121,-22507.60965495,0.00019998,2]
[329126183,1718125834132,-500.0,0.00019998,2]
[329126184,1718125834142,-500.0,0.00019998,2]
[329126185,1718125834153,-500.0,0.00019998,2]
[329126187,1718125834164,-500.0,0.00019998,2]
[329126189,1718125834175,-500.0,0.00019998,2]
[329126191,1718125834186,-500.0,0.00019998,2]
[329126193,1718125834197,-500.0,0.00019998,2]
[329126194,1718125834207,-621.14809253,0.00019998,2]
[329126195,1718125834218,-500.0,0.00019998,2]
[329126196,1718125834228,-500.0,0.00019998,2]
[329126197,1718125834239,-500.0,0.00019998,2]
[329126198,1718125834250,-500.0,0.00019998,2]
[329126199,1718125834261,-500.0,0.00019998,2]
[329126200,1718125834272,-500.0,0.00019998,2]
[329126201,1718125834285,-368.98592894,0.00019998,2]
[329126202,1718125834296,-500.0,0.00019998,2]
[329126204,1718125834307,-544.11,0.00019999,2]
[329126206,1718125834317,-500.0,0.00019999,2]
[329126208,1718125834329,-500.0,0.00019999,2]
[329126210,1718125834340,-337.97621532,0.00019999,2]
[329126212,1718125834351,-500.0,0.00019999,2]
[329126214,1718125834362,-500.0,0.00019999,2]
[329126216,1718125834374,-500.0,0.00019999,2]
[329126218,1718125834384,-500.0,0.00019999,2]
[329126219,1718125834395,-500.0,0.00019999,2]
[329126220,1718125834406,-500.0,0.00019999,2]
[329126221,1718125834417,-500.0,0.00019999,2]
[329126222,1718125834427,-500.0,0.00019999,2]
[329126223,1718125834438,-500.0,0.00019999,2]
[329126224,1718125834449,-505.10966833,0.00019999,2]
[329126225,1718125834460,-500.0,0.00019999,2]
[329126226,1718125834470,-513.85139915,0.00019999,2]
[329126227,1718125834481,-500.0,0.00019999,2]
[329126228,1718125834491,-500.0,0.00019999,2]
[329126229,1718125834502,-500.0,0.00019999,2]
[329126230,1718125834513,-207.51373929,0.00019999,2]
[329126231,1718125834529,-296.04797721,0.00019999,2]
[329126232,1718125834540,-500.0,0.00019999,2]
[329126233,1718125834552,-500.0,0.00019999,2]
[329126234,1718125834563,-500.0,0.00019999,2]
[329126235,1718125834574,-623.03,0.00019999,2]